bitfinex/quotes_ETHUSD_20250908
["timestamp","ask_amount","ask_price","bid_price","bid_amount"]
[1757329360877,19.68,4328.2,4328.1,1.20920001]
[1757329361397,21.99042927,4328.2,4328.1,1.20920001]
[1757329361574,23.22042927,4328.2,4328.1,1.20920001]
[1757329363568,22.14,4328.2,4328.1,1.20920001]
[1757329364884,23.37,4328.2,4328.1,1.20920001]
[1757329365989,23.371,4328.2,4328.1,1.20920001]
[1757329366301,24.601,4328.2,4328.1,1.20920001]
[1757329366800,26.91142927,4328.2,4328.1,1.20920001]
[1757329366996,24.6002,4328.2,4328.1,1.20920001]
[1757329367498,25.8302,4328.2,4328.1,1.20920001]
[1757329368167,28.14062927,4328.2,4328.1,0.31080001]
[1757329368351,28.14062927,4328.2,4328.1,0.00200001]
[1757329368352,31.19043724,4328.2,4328.1,0.00200001]
[1757329368724,42.56984241,4328.2,4328.1,0.00200001]
[1757329368949,8.4702946,4327.9,4327.8,1e-08]
[1757329369076,15.3262946,4327.9,4327.8,1e-08]
[1757329369259,18.81980257,4327.9,4327.8,1e-08]
[1757329369457,19.53250528,4327.9,4327.8,1e-08]
[1757329369657,19.66192426,4327.9,4327.8,1e-08]
[1757329369871,20.24789851,4327.9,4327.8,1e-08]
[1757329370269,21.34847953,4327.9,4327.8,1e-08]
[1757329371373,21.47788286,4327.9,4327.8,1e-08]
[1757329371778,22.70788286,4327.9,4327.8,1e-08]
[1757329372264,22.91390861,4327.9,4327.8,1e-08]
[1757329373262,24.14390861,4327.9,4327.8,1e-08]
[1757329374802,25.37390861,4327.9,4327.8,1e-08]
[1757329377605,21.67420344,4327.9,4327.8,1e-08]
[1757329377801,2.31112343,4326.9,4326.8,0.025]
[1757329377988,16.37327479,4326.9,4326.8,0.025]
[1757329378181,16.67347479,4326.9,4326.8,0.025]
[1757329378585,16.37327479,4326.9,4326.8,0.025]
[1757329379003,16.67347479,4326.9,4326.8,0.025]
[1757329379194,17.90347479,4326.9,4326.8,0.025]
[1757329379875,18.57524913,4326.9,4326.8,0.025]
[1757329380293,18.07654913,4326.9,4326.8,0.025]
[1757329380514,19.30654913,4326.9,4326.8,0.025]
[1757329381288,19.80524913,4326.9,4326.8,0.025]
[1757329381996,20.53654913,4326.9,4326.8,0.025]
[1757329382199,20.53654913,4326.9,4326.1,0.5179]
[1757329382200,7.6223537,4326.8,4326.1,0.5179]
[1757329382505,6.58535239,4326.9,4326.8,0.3004]
[1757329382707,6.58535239,4326.9,4326.8,1.2488]
[1757329382911,8.13122896,4326.9,4326.8,1.2488]
[1757329383096,9.69060324,4327.9,4326.8,1.2488]
[1757329383097,7.38,4327.9,4326.8,2.0408]
[1757329383282,7.38,4327.9,4326.9,2.2739]
[1757329383480,13.53970517,4327.9,4327.0,0.75533]
[1757329383686,13.53970517,4327.9,4327.1,0.4979]
[1757329383886,2.31092712,4327.3,4327.1,0.4979]
[1757329384101,7.38,4327.9,4327.1,0.4979]
[1757329384282,7.38,4327.9,4327.2,0.253133]
[1757329384283,2.31076085,4327.6,4327.2,0.253133]
[1757329384488,7.38,4327.9,4327.3,0.4979]
[1757329384719,8.7252,4327.9,4327.3,0.4979]
[1757329384918,8.7252,4327.9,4327.3,2.80879139]
[1757329385079,8.61,4327.9,4327.4,0.31771244]
[1757329385286,8.61,4327.9,4327.6,0.1152]
[1757329385621,8.61,4327.9,4327.7,0.4979]
[1757329385822,0.025,4327.8,4327.7,0.4979]
[1757329387489,1.255,4327.8,4327.7,0.4979]
[1757329387894,1.255,4327.8,4327.7,0.82206582]
[1757329388714,2.485,4327.8,4327.7,0.82206582]
[1757329389432,2.485,4327.8,4327.7,0.4979]
[1757329389944,2.31112343,4326.9,4326.3,0.69598901]
[1757329390245,12.3458286,4326.9,4326.3,0.69598901]
[1757329390389,12.6460286,4326.9,4326.3,0.002]
[1757329390589,6.91752343,4326.9,4326.3,0.002]
[1757329391539,8.14752343,4326.9,4326.3,0.002]
[1757329392310,8.14672343,4326.9,4326.3,0.002]
[1757329393027,9.37672343,4326.9,4326.3,0.002]
[1757329393414,11.32517222,4326.9,4326.3,0.002]
[1757329393630,14.32517222,4326.9,4326.3,0.002]
[1757329393805,9.52027222,4326.9,4326.3,0.002]
[1757329393999,4.77032343,4326.9,4326.3,0.002]
[1757329394226,8.64632343,4326.9,4326.4,0.4979]
[1757329394426,9.87632343,4326.9,4326.4,0.4979]
[1757329395833,11.10632343,4326.9,4326.4,0.4979]
[1757329396204,14.83772343,4326.9,4326.3,0.002]
[1757329396441,17.46000222,4326.9,4326.3,0.002]
[1757329396928,2.31139053,4326.4,4326.3,0.002]
[1757329397132,6.18671239,4326.4,4326.3,0.002]
[1757329397295,7.41681239,4326.4,4326.3,0.002]
[1757329398629,8.64681239,4326.4,4326.3,0.002]
[1757329399312,8.14811239,4326.4,4326.3,0.002]
[1757329399845,9.37811239,4326.4,4326.3,0.002]
[1757329400406,9.87681239,4326.4,4326.3,0.002]
[1757329401501,12.32562522,4326.4,4326.3,0.002]
[1757329401816,15.32562522,4326.4,4326.3,0.002]
[1757329402929,16.55562522,4326.4,4326.3,0.002]
[1757329404319,17.28692522,4326.4,4326.3,0.002]
[1757329405210,12.18711239,4326.4,4326.3,0.002]
[1757329405413,16.06511239,4326.4,4326.3,0.002]
[1757329405621,17.29511239,4326.4,4326.3,0.002]
[1757329407019,18.52511239,4326.4,4326.3,0.002]
[1757329407343,19.01961239,4326.4,4326.3,0.002]
[1757329407644,21.16196378,4326.4,4326.3,0.002]
[1757329408419,22.39196378,4326.4,4326.3,0.002]
[1757329409705,23.62196378,4326.4,4326.3,0.002]
[1757329411114,24.85196378,4326.4,4326.3,0.002]
[1757329411707,2.31149738,4326.2,4325.8,0.025]
[1757329411912,2.31203181,4325.2,4325.1,0.02]
[1757329412114,6.20403181,4325.2,4325.1,0.02]
[1757329412520,7.43403181,4325.2,4325.1,0.02]
[1757329412914,11.66273181,4325.2,4325.1,0.02]
[1757329413246,13.23790095,4325.2,4325.1,0.02]
[1757329414065,11.66503181,4325.2,4325.1,0.5082]
[1757329414242,11.66503181,4325.2,4325.1,0.0233]
[1757329414825,8.66503181,4325.2,4325.1,0.5082]
[1757329415220,9.89603181,4325.2,4325.1,0.5082]
[1757329416363,3.69,4325.2,4325.1,0.7947616]
[1757329416913,4.92,4325.2,4325.1,0.7947616]
[1757329417559,4.92,4325.2,4325.1,0.7927616]
[1757329417760,4.9192,4325.2,4325.1,3.10484686]
[1757329417982,4.9192,4325.2,4325.1,0.7951616]
[1757329418384,6.1492,4325.2,4325.1,0.7951616]
[1757329418551,6.1492,4325.2,4325.1,3.10724686]
[1757329418756,6.1492,4325.2,4325.1,0.7951616]
[1757329419173,6.1492,4325.2,4325.1,0.7927616]
[1757329419749,9.69123181,4325.2,4325.1,0.5082]
[1757329420147,9.69123181,4325.2,4325.1,0.0233]
[1757329421138,10.92123181,4325.2,4325.1,0.02]
[1757329421988,10.92123181,4325.2,4325.1,0.0238]
[1757329422681,12.15123181,4325.2,4325.1,0.0238]
[1757329423766,12.15123181,4325.2,4325.1,0.0258]
[1757329423971,13.38123181,4325.2,4325.1,0.0258]
[1757329425297,14.61123181,4325.2,4325.1,0.0258]
[1757329426144,12.2992,4325.2,4325.1,0.0258]
[1757329426569,14.61123181,4325.2,4325.1,0.0258]
[1757329426851,13.5292,4325.2,4325.1,0.0258]
[1757329427068,13.5292,4325.2,4325.1,0.7470216]
[1757329428061,13.5292,4325.2,4325.1,3.05910686]
[1757329428282,14.7592,4325.2,4325.1,3.05910686]
[1757329428650,14.7592,4325.2,4325.1,6.95410686]
[1757329428862,14.7592,4325.2,4325.1,6.95650686]
[1757329429549,15.9892,4325.2,4325.1,6.95650686]
[1757329429885,15.9892,4325.2,4325.1,7.07170686]
[1757329430450,15.9892,4325.2,4325.1,7.86370686]
[1757329431050,17.2192,4325.2,4325.1,7.86370686]
[1757329432089,17.2192,4325.2,4325.1,7.86130686]
[1757329432571,18.4492,4325.2,4325.1,7.86130686]
[1757329432988,18.4492,4325.2,4325.1,7.86370686]
[1757329433877,18.4492,4325.2,4325.1,10.86370686]
[1757329434073,19.6792,4325.2,4325.1,10.86370686]
[1757329435470,20.9092,4325.2,4325.1,10.86370686]
[1757329436882,22.1392,4325.2,4325.1,10.86370686]
[1757329438586,23.3692,4325.2,4325.1,10.86370686]
[1757329439285,23.3692,4325.2,4325.1,10.86170686]
[1757329439885,24.5992,4325.2,4325.1,10.86170686]
[1757329441515,25.8292,4325.2,4325.1,10.86170686]
[1757329441810,26.5563,4325.2,4325.1,9.46240686]
[1757329442108,26.5563,4325.2,4325.1,6.22608526]
[1757329442307,27.0449,4325.2,4325.1,7.01808526]
[1757329442671,28.2749,4325.2,4325.1,7.01808526]
[1757329442883,28.2749,4325.2,4325.1,4.706]
[1757329443078,28.2751,4325.2,4325.1,0.022]
[1757329443276,28.2751,4325.2,4325.1,3.92]
[1757329444083,29.5051,4325.2,4325.1,3.92]
[1757329444582,29.5051,4325.2,4325.1,3.919]
[1757329444782,29.5051,4325.2,4325.1,0.022]
[1757329444982,29.5051,4325.2,4325.1,3.92]
[1757329445618,30.7351,4325.2,4325.1,3.92]
[1757329446110,29.5194,4325.2,4325.1,7.05854771]
[1757329446315,29.5194,4325.2,4325.1,4.7233416]
[1757329446494,30.2465,4325.2,4325.1,4.7233416]
[1757329446815,29.5194,4325.2,4325.1,11.29152686]
[1757329446985,30.7494,4325.2,4325.1,11.29152686]
[1757329447924,30.7494,4325.2,4325.1,6.93322686]
[1757329448119,30.7494,4325.2,4325.1,6.92942686]
[1757329448301,31.9794,4325.2,4325.1,6.92942686]
[1757329448503,31.9794,4325.2,4325.1,7.7273416]
[1757329448504,32.7065,4325.2,4325.1,7.7273416]
[1757329448706,32.7065,4325.2,4325.1,3.924]
[1757329449326,33.1951,4325.2,4325.1,3.924]
[1757329449840,34.4251,4325.2,4325.1,3.924]
[1757329451420,35.6551,4325.2,4325.1,3.924]
[1757329451818,35.6551,4325.2,4325.1,4.0392]
[1757329452159,34.8752,4325.2,4325.1,6.35128526]
[1757329452322,34.4394,4325.2,4325.1,7.39775539]
[1757329452697,35.6694,4325.2,4325.1,7.39775539]
[1757329454061,35.9607,4325.2,4325.1,7.39475539]
[1757329454204,36.8994,4325.2,4325.1,7.39855539]
[1757329455249,36.8994,4325.2,4325.1,7.39475539]
[1757329455463,36.8994,4325.2,4325.1,3.49575539]
[1757329455627,38.8565,4325.2,4325.1,7.39575539]
[1757329456012,38.8565,4325.2,4325.1,5.08367013]
[1757329456245,39.3451,4325.2,4325.1,0.1372]
[1757329456552,39.3451,4325.2,4325.1,4.0372]
[1757329456764,39.3451,4325.2,4325.1,0.1372]
[1757329456969,40.5751,4325.2,4325.1,4.0372]
[1757329458464,41.8051,4325.2,4325.1,4.0372]
[1757329458959,41.8051,4325.2,4325.1,0.1372]
[1757329459186,41.8051,4325.2,4325.1,4.0372]
[1757329459455,41.8051,4325.2,4325.1,4.0352]
[1757329459614,43.0351,4325.2,4325.1,0.1372]
[1757329459963,43.0351,4325.2,4325.1,3.92]
[1757329460373,43.0351,4325.2,4325.1,3.919]
[1757329460507,43.0351,4325.2,4325.1,0.022]
[1757329460508,47.61503978,4325.2,4325.1,0.022]
[1757329460711,51.51303978,4325.2,4325.1,0.022]
[1757329460964,52.74303978,4325.2,4325.1,0.022]
[1757329462451,53.97303978,4325.2,4325.1,0.022]
[1757329463668,55.20303978,4325.2,4325.1,0.022]
[1757329464975,56.43303978,4325.2,4325.1,0.022]
[1757329466324,57.66303978,4325.2,4325.1,0.022]
[1757329467978,61.89303978,4325.2,4325.1,0.022]
[1757329468645,61.89223978,4325.2,4325.1,0.022]
[1757329469220,63.12223978,4325.2,4325.1,0.022]
[1757329470767,64.35223978,4325.2,4325.1,0.022]
[1757329472040,65.58223978,4325.2,4325.1,0.022]
[1757329473465,66.81223978,4325.2,4325.1,0.022]
[1757329473846,66.31863978,4325.2,4325.1,0.022]
[1757329474153,66.81673978,4325.2,4325.1,0.022]
[1757329474749,68.04673978,4325.2,4325.1,0.022]
[1757329476464,69.27673978,4325.2,4325.1,0.022]
[1757329477963,70.50673978,4325.2,4325.1,0.022]
[1757329478474,76.67362815,4325.2,4325.1,0.022]
[1757329479073,5.42728526,4325.1,4325.0,2.312416]
[1757329479300,12.08429323,4325.1,4325.0,1e-08]
[1757329479431,13.4328909,4325.1,4325.0,1e-08]
[1757329480033,11.12080564,4325.1,4324.1,0.02]
[1757329480263,2.31256648,4324.2,4324.1,0.02]
[1757329480448,6.20256648,4324.2,4324.1,0.02]
[1757329480779,2.31283391,4323.7,4323.6,1.69700001]
[1757329480976,2.31283391,4323.7,4323.6,1.70080001]
[1757329482074,2.31283391,4323.7,4323.6,0.473]
[1757329482276,3.54283391,4323.7,4323.6,0.0038]
[1757329483174,3.85843391,4323.7,4323.6,0.002]
[1757329483347,12.04244836,4323.7,4323.6,0.002]
[1757329483870,6.15155999,4323.7,4323.6,0.002]
[1757329484077,5.08843391,4323.7,4323.6,0.002]
[1757329484452,5.54433391,4323.7,4323.6,0.002]
[1757329485086,6.77433391,4323.7,4323.6,0.002]
[1757329485383,3.69,4323.7,4323.6,0.475]
[1757329486387,4.92,4323.7,4323.6,0.475]
[1757329486704,7.23283391,4323.7,4323.6,0.475]
[1757329486866,4.92,4323.7,4323.6,0.475]
[1757329487203,7.23283391,4323.7,4323.6,0.475]
[1757329488001,6.15,4323.7,4323.6,0.475]
[1757329489167,7.38,4323.7,4323.6,0.475]
[1757329489678,7.38,4323.7,4323.6,0.0058]
[1757329490208,7.38,4323.7,4323.6,0.475]
[1757329490500,7.38,4323.7,4323.6,0.0058]
[1757329490666,8.61,4323.7,4323.6,0.0058]
[1757329491810,8.61,4323.7,4323.6,0.002]
[1757329492096,9.84,4323.7,4323.6,0.002]
[1757329492710,12.15283391,4323.7,4323.6,0.002]
[1757329493229,12.60873391,4323.7,4323.6,0.002]
[1757329493374,14.15433391,4323.7,4323.6,0.002]
[1757329493822,11.8415,4323.7,4323.6,0.002]
[1757329493980,11.5251,4323.7,4323.6,0.002]
[1757329494184,13.83793391,4323.7,4323.6,0.002]
[1757329494607,11.5251,4323.7,4323.6,0.002]
[1757329494810,12.2992,4323.7,4323.6,0.0058]
[1757329495425,12.2992,4323.7,4323.6,0.4727]
[1757329496113,13.5292,4323.7,4323.6,0.4727]
[1757329497417,14.7592,4323.7,4323.6,0.4727]
[1757329499202,15.9892,4323.7,4323.6,0.4727]
[1757329499591,15.9892,4323.7,4323.6,0.002]
[1757329499808,16.4372,4323.7,4323.6,0.002]
[1757329500044,18.75003391,4323.7,4323.6,0.002]
[1757329500192,19.06133391,4323.7,4323.6,0.002]
[1757329500735,20.77453391,4323.7,4323.6,0.002]
[1757329501307,26.15518485,4323.7,4323.6,0.002]
[1757329502132,27.38518485,4323.7,4323.6,0.002]
[1757329503125,27.38618485,4323.7,4323.6,0.002]
[1757329503301,23.50118485,4323.7,4323.6,0.002]
[1757329503505,28.61718485,4323.7,4323.6,0.002]
[1757329503999,27.68598485,4323.7,4323.6,0.002]
[1757329504203,26.19033391,4323.7,4323.6,0.002]
[1757329504525,26.63833391,4323.7,4323.6,0.002]
[1757329505134,24.7962,4323.7,4323.6,0.002]
[1757329505339,24.7962,4323.7,4323.6,0.0058]
[1757329505544,20.9102,4323.7,4323.6,0.4727]
[1757329505848,20.9102,4323.7,4323.6,3.18175366]
[1757329506864,22.1402,4323.7,4323.6,3.18175366]
[1757329508099,23.3702,4323.7,4323.6,3.18175366]
[1757329508344,23.3702,4323.7,4323.6,3.17935366]
[1757329508631,23.3702,4323.7,4323.6,3.18175366]
[1757329509001,23.3702,4323.7,4323.6,7.06775366]
[1757329509506,24.6002,4323.7,4323.6,7.06775366]
[1757329510135,24.6002,4323.7,4323.6,7.85975366]
[1757329510337,24.6002,4323.7,4323.6,10.85975366]
[1757329510541,24.6002,4323.7,4323.6,17.02603564]
[1757329510938,25.8302,4323.7,4323.6,17.02603564]
[1757329512224,27.0602,4323.7,4323.6,17.02603564]
[1757329513535,28.2902,4323.7,4323.6,17.02603564]
[1757329514954,29.5202,4323.7,4323.6,17.02603564]
[1757329516561,30.7502,4323.7,4323.6,17.02603564]
[1757329516930,30.7502,4323.7,4323.6,17.72044231]
[1757329517131,30.7502,4323.7,4323.6,17.71404231]
[1757329517761,30.7502,4323.7,4323.6,13.83204231]
[1757329517979,31.9802,4323.7,4323.6,17.71404231]
[1757329519433,33.2094,4323.7,4323.6,17.71404231]
[1757329521161,34.4394,4323.7,4323.6,17.71404231]
[1757329522051,34.4394,4323.7,4323.6,17.71204231]
[1757329522421,34.4394,4323.7,4323.6,18.82713862]
[1757329522619,35.6694,4323.7,4323.6,18.82713862]
[1757329524055,36.8994,4323.7,4323.6,18.82713862]
[1757329525346,38.1294,4323.7,4323.6,18.82713862]
[1757329526884,39.3594,4323.7,4323.6,18.82713862]
[1757329527106,1e-08,4323.7,4323.6,18.13273195]
[1757329527261,1e-08,4323.7,4323.6,18.13513195]
[1757329527772,1e-08,4323.7,4323.6,18.82954988]
[1757329528275,1.23000001,4323.7,4323.6,18.82954988]
[1757329528590,1.23000001,4323.7,4323.6,18.82714988]
[1757329528993,1.231,4324.2,4324.1,3.10461996]
[1757329529189,1.231,4324.2,4324.1,19.04099825]
[1757329529493,2.461,4324.2,4324.1,19.61319825]
[1757329530001,2.461,4324.2,4324.1,20.30752617]
[1757329531283,3.691,4324.2,4324.1,20.30752617]
[1757329531487,3.691,4324.2,4324.1,20.58609243]
[1757329532598,4.90261466,4324.2,4324.1,20.58609243]
[1757329533515,4.90261466,4324.2,4324.1,20.58309243]
[1757329534022,4.90261466,4324.2,4324.1,12.84851414]
[1757329534219,6.13261466,4324.2,4324.1,20.58309243]
[1757329535571,7.36261466,4324.2,4324.1,20.58309243]
[1757329536471,7.36261466,4324.2,4324.1,20.12989243]
[1757329536983,7.36261466,4324.2,4324.1,20.12409243]
[1757329537188,8.59261466,4324.2,4324.1,20.12409243]
[1757329537922,8.59261466,4324.2,4324.1,20.12789243]
[1757329538491,9.82261466,4324.2,4324.1,20.12789243]
[1757329538669,9.82261466,4324.2,4324.1,12.84271414]
[1757329538874,9.82261466,4324.2,4324.1,16.25109243]
[1757329539100,9.82261466,4324.2,4324.1,20.12409243]
[1757329539838,11.05261466,4324.2,4324.1,20.12409243]
[1757329540632,11.05261466,4324.2,4324.1,20.12789243]
[1757329541127,12.28261466,4324.2,4324.1,20.12789243]
[1757329541478,12.28261466,4324.2,4324.1,20.12409243]
[1757329541776,13.54061466,4324.2,4324.1,9.34332792]
[1757329542057,13.54061466,4324.2,4324.1,10.96161996]
[1757329542259,13.54061466,4324.2,4324.1,11.75361996]
[1757329542470,14.77061466,4324.2,4324.1,11.75361996]
[1757329543854,16.00061466,4324.2,4324.1,11.75361996]
[1757329544770,14.74261466,4324.2,4324.1,11.75741996]
[1757329544938,14.74181466,4324.2,4324.1,11.75741996]
[1757329545119,14.74181466,4324.2,4324.1,12.21061996]
[1757329545320,15.97181466,4324.2,4324.1,12.21061996]
[1757329545569,15.97181466,4324.2,4324.1,19.49199825]
[1757329545774,15.97181466,4324.2,4324.1,19.03879825]
[1757329546779,17.20181466,4324.2,4324.1,19.03879825]
[1757329547392,17.96651466,4324.2,4324.1,7.88161996]
[1757329547546,18.45981466,4324.2,4324.1,10.96261996]
[1757329548288,19.68981466,4324.2,4324.1,11.75461996]
[1757329549450,20.91981466,4324.2,4324.1,11.75461996]
[1757329550851,22.14981466,4324.2,4324.1,12.4490636]
[1757329551408,22.14981466,4324.2,4324.1,8.5760636]
[1757329551612,22.14981466,4324.2,4324.1,12.4480636]
[1757329551752,22.14981466,4324.2,4324.1,12.5632636]
[1757329551951,22.14981466,4324.2,4324.1,11.86881996]
[1757329552553,23.37981466,4324.2,4324.1,11.86881996]
[1757329554002,24.60981466,4324.2,4324.1,11.86881996]
[1757329554771,24.60981466,4324.2,4324.1,4.8922]
[1757329554987,24.60981466,4324.2,4324.1,11.07581996]
[1757329555386,25.83981466,4324.2,4324.1,11.07581996]
[1757329556713,27.06981466,4324.2,4324.1,11.07581996]
[1757329558276,28.29981466,4324.2,4324.1,11.07581996]
[1757329559798,29.52981466,4324.2,4324.1,11.07581996]
[1757329560488,29.52981466,4324.2,4324.1,4.8922]
[1757329560686,29.52981466,4324.2,4324.1,11.07481996]
[1757329561183,30.75981466,4324.2,4324.1,11.07481996]
[1757329562731,31.98981466,4324.2,4324.1,11.07481996]
[1757329564514,33.21981466,4324.2,4324.1,11.07481996]
[1757329564890,33.21981466,4324.2,4324.1,8.7622]
[1757329565480,32.72651466,4324.2,4324.1,11.07481996]
[1757329566119,33.95651466,4324.2,4324.1,11.07481996]
[1757329566990,33.95651466,4324.2,4324.1,8.7622]
[1757329567517,34.46231466,4324.2,4324.1,8.7622]
[1757329567721,35.69231466,4324.2,4324.1,8.7622]
[1757329568018,35.69231466,4324.2,4324.1,11.07481996]
[1757329568213,35.18651466,4324.2,4324.1,11.07481996]
[1757329568421,35.18651466,4324.2,4324.1,7.20481996]
[1757329568623,34.42181466,4324.2,4324.1,12.02657323]
[1757329569009,35.65181466,4324.2,4324.1,12.02657323]
[1757329569379,36.11891466,4324.2,4324.1,12.02657323]
[1757329570316,37.34811466,4324.2,4324.1,12.02657323]
[1757329570918,36.88101466,4324.2,4324.1,12.02657323]
[1757329571482,36.88101466,4324.2,4324.1,13.33537323]
[1757329571705,38.11101466,4324.2,4324.1,13.33537323]
[1757329571916,38.11101466,4324.2,4324.1,13.22017323]
[1757329572220,38.11101466,4324.2,4324.1,13.91691883]
[1757329572423,38.11101466,4324.2,4324.1,13.91451883]
[1757329573215,39.34101466,4324.2,4324.1,13.91451883]
[1757329574536,40.57101466,4324.2,4324.1,13.91451883]
[1757329575413,40.57101466,4324.2,4324.1,13.91651883]
[1757329576218,41.80101466,4324.2,4324.1,13.91651883]
[1757329577148,34.44,4324.2,4324.1,13.91651883]
[1757329577321,59.0386,4325.2,4324.5,3.792]
[1757329577650,59.0386,4325.2,4325.1,13.38926355]
[1757329577786,59.0386,4325.2,4325.1,19.54926355]
[1757329577986,59.0386,4325.2,4325.1,20.50101682]
[1757329579046,60.2686,4325.2,4325.1,20.50101682]
[1757329579187,60.2686,4325.2,4325.1,21.1952162]
[1757329580287,61.4986,4325.2,4325.1,21.1952162]
[1757329581052,61.4986,4325.2,4325.1,20.6822162]
[1757329581327,61.4986,4325.2,4325.1,20.6784162]
[1757329581707,62.7286,4325.2,4325.1,20.6784162]
[1757329581927,62.7286,4325.2,4325.1,20.7936162]
[1757329582426,63.1957,4325.2,4325.1,19.67256499]
[1757329583138,63.4866,4325.2,4325.1,7.86523791]
[1757329583349,63.4866,4325.2,4323.5,1.0]
[1757329583350,65.2224,4325.2,4324.1,0.002]
[1757329583630,65.2224,4325.2,4324.2,3.869]
[1757329583838,2.31213872,4325.0,4324.2,3.869]
[1757329584041,0.3112,4324.3,4324.2,3.869]
[1757329584187,0.7563,4324.3,4324.2,3.869]
[1757329584388,1.2835,4324.3,4324.2,3.869]
[1757329584610,2.5135,4324.3,4324.2,3.869]
[1757329586020,3.7435,4324.3,4324.2,3.869]
[1757329587424,4.9735,4324.3,4324.2,3.869]
[1757329587728,4.9735,4324.3,4324.2,3.88]
[1757329587926,4.9735,4324.3,4324.1,0.002]
[1757329588224,4.9735,4324.3,4324.2,3.88]
[1757329588225,7.286013,4324.3,4324.2,3.88]
[1757329588617,8.516013,4324.3,4324.2,3.88]
[1757329589828,2.31256648,4324.2,4324.1,0.002]
[1757329590035,2.31256648,4324.2,4324.1,3.881]
[1757329590201,3.59606648,4324.2,4324.1,3.881]
[1757329591441,4.82606648,4324.2,4324.1,3.881]
[1757329593139,6.05606648,4324.2,4324.1,3.881]
[1757329593342,6.05606648,4324.2,4324.1,3.9962]
[1757329594638,7.28606648,4324.2,4324.1,3.9962]
[1757329594846,7.28706648,4324.2,4324.1,3.9962]
[1757329595822,7.28626648,4324.2,4324.1,3.9962]
[1757329596019,8.51626648,4324.2,4324.1,3.9962]
[1757329596656,8.51626648,4324.2,4324.1,0.1172]
[1757329596805,10.21414208,4324.2,4324.1,3.879]
[1757329597005,10.21414208,4324.2,4324.1,3.889]
[1757329597405,11.44414208,4324.2,4324.1,3.889]
[1757329597644,11.44414208,4324.2,4324.1,0.012]
[1757329598720,12.67414208,4324.2,4324.1,0.012]
[1757329600316,13.90414208,4324.2,4324.1,0.012]
[1757329601125,11.23476648,4324.2,4324.1,0.012]
[1757329601320,11.67986648,4324.2,4324.1,0.012]
[1757329601641,10.92356648,4324.2,4324.1,0.012]
[1757329601843,10.92356648,4324.2,4324.1,0.2971]
[1757329601844,8.611,4324.2,4324.1,0.2971]
[1757329602011,8.611,4324.2,4324.1,1.52216271]
[1757329602206,8.611,4324.2,4324.1,1.63736271]
[1757329603123,8.611,4324.2,4324.1,5.22826271]
[1757329603440,9.841,4324.2,4324.1,4.0032]
[1757329603832,9.841,4324.2,4324.1,4.2883]
[1757329604630,11.071,4324.2,4324.1,4.2883]
[1757329605971,11.071,4324.2,4324.1,13.70734704]
[1757329606320,11.071,4324.2,4324.1,14.49934704]
[1757329606523,11.071,4324.2,4324.1,12.18672708]
[1757329607279,11.071,4324.2,4324.1,14.49934704]
[1757329608199,11.071,4324.2,4324.1,12.18672708]
[1757329608487,11.071,4324.2,4324.1,5.5958]
[1757329609077,11.071,4324.2,4324.1,5.0803]
[1757329609283,11.071,4324.2,4324.1,6.65878961]
[1757329609480,11.071,4324.2,4324.1,6.37068961]
[1757329610569,11.071,4324.2,4324.1,2.49768961]
[1757329610793,11.071,4324.2,4324.1,6.37068961]
[1757329611997,11.3822,4324.2,4324.1,0.1272]
[1757329612311,12.3545,4324.2,4324.1,0.1272]
[1757329612611,14.66706648,4324.2,4324.1,3.884]
[1757329612959,14.66706648,4324.2,4324.1,0.012]
[1757329613194,16.1579415,4324.2,4324.1,3.884]
[1757329616903,14.66706648,4324.2,4324.1,3.884]
[1757329617201,15.89706648,4324.2,4324.1,3.884]
[1757329618982,17.12706648,4324.2,4324.1,3.884]
[1757329619574,17.12626648,4324.2,4324.1,0.012]
[1757329620295,18.35626648,4324.2,4324.1,0.012]
[1757329620500,20.62417445,4324.2,4324.1,0.012]
[1757329621412,20.62337445,4324.2,4324.1,0.012]
[1757329621607,26.78370153,4324.2,4324.1,0.012]
[1757329621811,31.88470153,4324.2,4324.1,0.012]
[1757329623174,33.11470153,4324.2,4324.1,0.012]
[1757329624021,26.95437445,4324.2,4324.1,0.012]
[1757329624718,28.18437445,4324.2,4324.1,0.012]
[1757329626216,29.41437445,4324.2,4324.1,0.012]
[1757329627515,30.64437445,4324.2,4324.1,0.012]
[1757329628686,37.49213505,4324.2,4323.8,1e-08]
[1757329628887,11.47305401,4323.9,4323.8,1e-08]
[1757329629101,16.05695198,4323.9,4323.8,1e-08]
[1757329629326,17.47095198,4323.9,4323.8,1e-08]
[1757329630325,18.20450175,4323.9,4323.8,1e-08]
[1757329631317,17.98905401,4323.9,4323.8,1e-08]
[1757329631502,20.25696198,4323.9,4323.8,1e-08]
[1757329631705,21.48696198,4323.9,4323.8,1e-08]
[1757329632351,11.4546349,4323.9,4323.8,1e-08]
[1757329632526,15.3266349,4323.9,4323.8,1e-08]
[1757329633090,16.5566349,4323.9,4323.8,1e-08]
[1757329633290,12.6846349,4323.9,4323.8,1e-08]
[1757329633530,16.5566349,4323.9,4323.8,1e-08]
[1757329634494,17.7866349,4323.9,4323.8,0.00200001]
[1757329635989,17.7866349,4323.9,4323.6,1e-08]
[1757329635990,3.0,4323.8,4323.6,1e-08]
[1757329636211,12.80290397,4323.7,4323.6,1e-08]
[1757329636411,14.21690397,4323.7,4323.6,1e-08]
[1757329637314,9.28657689,4323.7,4323.6,1e-08]
[1757329637520,15.44690397,4323.7,4323.6,1e-08]
[1757329637819,15.62352366,4323.7,4323.6,1e-08]
[1757329638646,16.85352366,4323.7,4323.6,1e-08]
[1757329639948,18.08352366,4323.7,4323.6,1e-08]
[1757329641334,19.31352366,4323.7,4323.6,1e-08]
[1757329642060,18.18752366,4323.7,4323.6,1e-08]
[1757329642258,8.15519658,4323.7,4323.6,1e-08]
[1757329642554,7.69057689,4323.7,4323.6,1e-08]
[1757329642756,13.08057689,4323.7,4323.6,1e-08]